bitfinex-derivatives/quotes_BTCF0:USTF0_20241130
["timestamp","ask_amount","ask_price","bid_price","bid_amount"]
[1732941113550,0.42047,96723.0,96722.0,0.001]
[1732941113850,0.54883,96723.0,96722.0,0.001]
[1732941119933,0.54883,96723.0,96722.0,0.052671]
[1732941125635,0.54883,96723.0,96722.0,0.001]
[1732941127943,0.61213,96723.0,96722.0,0.001]
[1732941133248,0.051677,96710.0,96709.0,0.0332]
[1732941133450,0.179957,96710.0,96708.0,0.18603578]
[1732941134250,0.051677,96710.0,96708.0,0.18603578]
[1732941134439,0.051677,96710.0,96709.0,0.001]
[1732941134639,0.179957,96710.0,96709.0,0.001]
[1732941136342,0.051677,96710.0,96709.0,0.001]
[1732941136546,0.179957,96710.0,96709.0,0.001]
[1732941137441,0.12828,96710.0,96700.0,0.1]
[1732941137643,0.051678,96709.0,96708.0,0.002]
[1732941138351,0.1407556,96710.0,96709.0,0.001]
[1732941139250,0.1407556,96710.0,96700.0,0.1]
[1732941139251,0.1407556,96710.0,96708.0,0.002]
[1732941139763,0.051678,96709.0,96708.0,0.002]
[1732941140052,0.051678,96709.0,96708.0,0.003]
[1732941140468,0.051678,96709.0,96708.0,0.002]
[1732941140642,0.051678,96709.0,96708.0,0.003]
[1732941141353,0.051678,96709.0,96708.0,0.001]
[1732941142349,0.051678,96709.0,96708.0,0.003]
[1732941144864,0.0124756,96710.0,96709.0,0.051678]
[1732941145068,0.0124756,96710.0,96709.0,0.084678]
[1732941145069,0.12828,96710.0,96709.0,0.084678]
[1732941146163,0.051676,96713.0,96711.0,0.051677]
[1732941146364,0.12828,96712.0,96711.0,0.051677]
[1732941146769,0.179956,96712.0,96711.0,0.051677]
[1732941147669,0.180956,96712.0,96711.0,0.051677]
[1732941147862,0.180956,96712.0,96711.0,0.052677]
[1732941154978,0.180956,96712.0,96711.0,0.001]
[1732941161683,0.541756,96712.0,96711.0,0.001]
[1732941163682,0.180956,96712.0,96711.0,0.001]
[1732941163908,0.541756,96712.0,96711.0,0.001]
[1732941173493,0.180956,96712.0,96711.0,0.001]
[1732941173698,0.541756,96712.0,96711.0,0.001]
[1732941181800,0.49008,96712.0,96711.0,0.001]
[1732941184096,0.49,96712.0,96711.0,0.001]
[1732941190898,0.1292,96712.0,96711.0,0.001]
[1732941193606,0.12912,96712.0,96711.0,0.001]
[1732941194406,0.01241669,96714.0,96711.0,0.60973119]
[1732941194609,0.05542115,96730.0,96711.0,0.60973119]
[1732941194610,0.12812,96719.0,96718.0,0.051673]
[1732941195700,0.10708815,96730.0,96728.0,0.051668]
[1732941195904,0.18913879,96729.0,96728.0,0.051668]
[1732941196894,0.06101879,96729.0,96728.0,0.051668]
[1732941197098,0.18913879,96729.0,96728.0,0.051668]
[1732941198043,0.19813879,96729.0,96728.0,0.052668]
[1732941198295,0.19813879,96729.0,96728.0,0.001]
[1732941198599,0.20213879,96729.0,96728.0,0.001]
[1732941199396,0.15362128,96729.0,96728.0,0.001]
[1732941200802,0.02550128,96729.0,96728.0,0.001]
[1732941200997,0.15362128,96729.0,96728.0,0.001]
[1732941210108,0.02550128,96729.0,96728.0,0.001]
[1732941212714,0.15362128,96729.0,96728.0,0.001]
[1732941217904,0.18662128,96729.0,96728.0,0.001]
[1732941220609,0.23828828,96729.0,96728.0,0.001]
[1732941224220,0.20520828,96729.0,96728.0,0.001]
[1732941242431,0.20520828,96729.0,96728.0,0.052668]
[1732941246933,0.20520828,96729.0,96728.0,0.001]
[1732941259241,0.07716828,96729.0,96728.0,0.001]
[1732941259437,0.20512828,96729.0,96728.0,0.001]
[1732941263048,0.56592828,96729.0,96728.0,0.001]
[1732941263243,0.43796828,96729.0,96728.0,0.001]
[1732941263455,0.56592828,96729.0,96728.0,0.001]
[1732941268354,0.20512828,96729.0,96728.0,0.001]
[1732941268664,0.56592828,96729.0,96728.0,0.001]
[1732941274558,0.553427,96729.0,96728.0,0.001]
[1732941278663,0.50176,96729.0,96706.0,0.18566756]
[1732941278854,0.50176,96729.0,96704.0,0.18566756]
[1732941278855,0.3608,96710.0,96704.0,0.18566756]
[1732941279057,0.051682,96701.0,96700.0,0.1]
[1732941279367,0.540442,96701.0,96700.0,0.1]
[1732941280860,0.540442,96701.0,96700.0,0.104]
[1732941281464,0.540442,96701.0,96700.0,0.108]
[1732941284653,0.48876,96701.0,96680.0,0.18559909]
[1732941284858,0.051694,96679.0,96675.0,0.0306]
[1732941285161,0.12788,96679.0,96675.0,0.0306]
[1732941285665,0.000101,96678.0,96675.0,0.0306]
[1732941286063,0.051695,96677.0,96675.0,0.0306]
[1732941286570,0.051695,96677.0,96675.0,0.0396]
[1732941287557,0.052695,96677.0,96675.0,0.0466]
[1732941288358,0.052695,96677.0,96675.0,0.0376]
[1732941288555,0.053695,96677.0,96675.0,0.0426]
[1732941290262,0.3608,96676.0,96675.0,0.0426]
[1732941291565,0.3608,96676.0,96675.0,0.0356]
[1732941291770,0.3618,96676.0,96675.0,0.0426]
[1732941292162,0.3628,96676.0,96675.0,0.0456]
[1732941299368,0.49072,96676.0,96675.0,0.097296]
[1732941300863,0.49072,96676.0,96675.0,0.015]
[1732941304285,0.051701,96666.0,96665.0,0.00010606]
[1732941304580,0.540421,96666.0,96665.0,0.00010606]
[1732941305178,0.540421,96666.0,96665.0,9.415e-05]
[1732941305587,0.540421,96666.0,96665.0,0.00809415]
[1732941305779,0.541421,96666.0,96665.0,0.00809415]
[1732941307180,0.542421,96666.0,96665.0,0.00909415]
[1732941308376,0.542421,96666.0,96665.0,0.01232858]
[1732941309378,0.542421,96666.0,96665.0,0.00909415]
[1732941309978,0.573221,96666.0,96665.0,0.00909415]
[1732941310177,0.58525766,96666.0,96665.0,0.00909415]
[1732941310581,0.58625766,96666.0,96665.0,0.00809415]
[1732941310979,0.58525766,96666.0,96665.0,9.415e-05]
[1732941311776,0.58625766,96666.0,96665.0,9.415e-05]
[1732941313487,0.051726,96618.0,96617.0,0.01286363]
[1732941313678,0.44768312,96618.0,96617.0,0.01488115]
[1732941313982,0.44768312,96618.0,96616.0,0.051727]
[1732941314483,0.44768312,96618.0,96617.0,0.00323599]
[1732941314688,0.44968312,96618.0,96617.0,0.00423599]
[1732941314988,0.44977954,96618.0,96617.0,0.00941343]
[1732941315287,0.44977954,96618.0,96617.0,0.00423599]
[1732941315472,0.44877954,96618.0,96617.0,0.00423599]
[1732941315819,0.44877954,96618.0,96617.0,0.00423577]
[1732941316183,0.44877954,96618.0,96617.0,0.00323577]
[1732941316780,0.31985954,96618.0,96617.0,0.00323577]
[1732941317085,0.43472,96635.0,96617.0,0.00841281]
[1732941317086,0.79552,96635.0,96617.0,0.00841281]
[1732941317283,0.12796,96632.0,96620.0,0.05386968]
[1732941317475,0.12796,96632.0,96618.0,0.07221281]
[1732941317476,0.12796,96632.0,96631.0,0.051719]
[1732941318088,0.12806248,96632.0,96631.0,0.05495426]
[1732941318392,0.12806248,96632.0,96631.0,0.051719]
[1732941318781,0.12806248,96632.0,96623.0,0.051724]
[1732941318989,0.051722,96627.0,96623.0,0.051724]
[1732941319187,0.051722,96627.0,96624.0,0.00323532]
[1732941319380,0.051722,96627.0,96625.0,0.00323532]
[1732941319690,0.051722,96627.0,96626.0,0.00323532]
[1732941321090,0.051722,96627.0,96626.0,0.00423532]
[1732941321381,0.051722,96627.0,96626.0,0.00941189]
[1732941322486,0.12806248,96632.0,96626.0,0.06113391]
[1732941322722,0.12806248,96632.0,96631.0,0.051719]
[1732941322905,0.12806248,96632.0,96631.0,0.05495434]
[1732941323396,0.12806248,96632.0,96631.0,0.00323534]
[1732941324092,0.13006248,96632.0,96631.0,0.00323534]
[1732941324983,0.00210248,96632.0,96631.0,0.00323534]
[1732941325294,0.00210248,96632.0,96631.0,0.00841187]
[1732941326002,0.13006248,96632.0,96631.0,0.00841186]
[1732941327792,0.00210248,96632.0,96631.0,0.00841186]
[1732941327991,0.13006248,96632.0,96631.0,0.00841186]
[1732941330698,0.49086248,96632.0,96631.0,0.00841186]
[1732941330895,0.36290248,96632.0,96631.0,0.00841186]
[1732941331098,0.49086248,96632.0,96631.0,0.00517653]
[1732941331395,0.49086248,96632.0,96631.0,0.00841186]
[1732941332386,0.36290248,96632.0,96631.0,0.00841186]
[1732941333495,0.36290248,96632.0,96631.0,0.0148823]
[1732941334594,0.36290248,96632.0,96631.0,0.00841186]
[1732941336201,0.00210248,96632.0,96631.0,0.00841186]
[1732941336394,0.50048,96653.0,96641.0,0.051714]
[1732941336395,0.01203862,96642.0,96641.0,0.051714]
[1732941336686,0.23353868,96651.0,96641.0,0.00323485]
[1732941336903,0.23353868,96651.0,96650.0,0.051709]
[1732941337095,0.179669,96651.0,96650.0,0.051709]
[1732941337498,0.051709,96651.0,96650.0,0.051709]
[1732941337700,0.20037455,96651.0,96650.0,0.051709]
[1732941339092,0.20537455,96651.0,96650.0,0.051709]
[1732941339297,0.21037455,96651.0,96650.0,0.051709]
[1732941339598,0.20537455,96651.0,96650.0,0.051709]
[1732941339906,0.20937455,96651.0,96650.0,0.051709]
[1732941340178,0.20637455,96651.0,96650.0,0.051709]
[1732941341405,0.20737455,96651.0,96650.0,0.051709]
[1732941341608,0.20793455,96651.0,96650.0,0.051709]
[1732941345207,0.07941455,96651.0,96650.0,0.051709]
[1732941345509,0.20793455,96651.0,96650.0,0.051709]
[1732941345813,0.051711,96647.0,96645.0,0.051711]
[1732941346202,0.18822555,96651.0,96640.0,0.051714]
[1732941346507,0.10773936,96650.0,96640.0,0.051714]
[1732941346703,0.10773936,96650.0,96626.0,0.0303]
[1732941346704,0.051716,96638.0,96633.0,0.051718]
[1732941346912,0.3608,96634.0,96633.0,0.051718]
[1732941348503,0.3608,96634.0,96633.0,0.054718]
[1732941349198,0.3608,96634.0,96633.0,0.052718]
[1732941354610,0.01222984,96637.0,96633.0,0.001]
[1732941354815,0.12852,96638.0,96636.0,0.051717]
[1732941355203,0.3608,96637.0,96636.0,0.051717]
[1732941356216,0.3608,96647.0,96646.0,0.051711]
[1732941357116,0.00155256,96652.0,96646.0,0.051711]
[1732941357330,0.00155256,96652.0,96651.0,0.051709]
[1732941358211,0.3608,96661.0,96647.0,0.0309]
[1732941358212,0.3608,96661.0,96660.0,0.051704]
[1732941359615,0.3668,96661.0,96660.0,0.051704]
[1732941360214,0.37935499,96661.0,96660.0,0.051704]
[1732941361320,0.38835499,96661.0,96660.0,0.051704]
[1732941365924,0.02755499,96661.0,96660.0,0.051704]
[1732941374223,0.015,96661.0,96660.0,0.051704]
[1732941385832,0.011,96661.0,96660.0,0.051704]
[1732941386526,0.011,96661.0,96660.0,0.05493827]
[1732941386733,0.011,96661.0,96660.0,0.051704]
[1732941386936,0.005,96661.0,96660.0,0.05493827]
[1732941387134,0.009,96661.0,96660.0,0.05493827]
[1732941388332,0.01,96661.0,96660.0,0.05493827]
[1732941388935,0.01,96661.0,96660.0,0.051704]
[1732941390640,0.051706,96657.0,96656.0,0.051705]
[1732941390881,0.051706,96657.0,96656.0,0.05493927]
[1732941391045,0.051706,96657.0,96656.0,0.051705]
[1732941391945,0.055706,96657.0,96656.0,0.051705]
[1732941393241,0.058706,96657.0,96656.0,0.051705]
[1732941395949,0.058706,96657.0,96656.0,0.05493929]
[1732941396456,0.007,96657.0,96656.0,0.05493929]
[1732941397059,0.007,96657.0,96656.0,0.06011416]
[1732941404168,0.007,96657.0,96656.0,0.05493929]
[1732941409669,0.007,96657.0,96656.0,0.05493927]
[1732941411165,0.007,96657.0,96656.0,0.06011411]
[1732941418917,0.007,96657.0,96656.0,0.06011361]
[1732941426179,0.007,96657.0,96656.0,0.3031756]
[1732941426569,0.007,96657.0,96656.0,0.05493908]
[1732941426871,0.007,96657.0,96656.0,0.30317514]
[1732941429276,0.007,96657.0,96656.0,0.051705]
[1732941434477,0.007,96657.0,96656.0,0.05493917]
[1732941438775,0.007,96657.0,96656.0,0.051705]
[1732941438982,0.007,96657.0,96656.0,0.05493917]
[1732941441270,0.007,96657.0,96656.0,0.051705]
[1732941443973,0.007,96657.0,96656.0,0.29994106]
[1732941444178,0.007,96657.0,96656.0,0.30317521]
[1732941444374,0.007,96657.0,96656.0,0.051705]
[1732941447372,0.007,96657.0,96656.0,0.29994106]
[1732941447592,0.007,96657.0,96656.0,0.30317522]
[1732941449383,0.007,96657.0,96656.0,0.30834987]
[1732941450875,0.007,96657.0,96656.0,0.06011381]
[1732941451382,0.13007203,96681.0,96677.0,0.051695]
[1732941452087,0.00155203,96681.0,96677.0,0.05492882]
[1732941452285,0.00155203,96681.0,96677.0,0.051695]
[1732941452576,0.0401,96678.0,96677.0,0.051695]
[1732941452686,0.02103539,96678.0,96677.0,0.051695]
[1732941453687,0.02103539,96678.0,96677.0,0.052695]
[1732941453688,0.03003539,96678.0,96677.0,0.052695]
[1732941454176,0.01503539,96678.0,96677.0,0.052695]
[1732941454374,0.003,96678.0,96677.0,0.052695]
[1732941454985,0.005,96678.0,96677.0,0.051695]
[1732941460488,0.005,96678.0,96677.0,0.05492878]
[1732941461803,0.005,96678.0,96677.0,0.00323378]
[1732941462300,0.005,96678.0,96677.0,0.00323374]
[1732941464090,0.3658,96678.0,96677.0,0.00323374]
[1732941464499,0.3658,96678.0,96674.0,0.051696]
[1732941465394,0.051699,96670.0,96663.0,0.051702]
[1732941465593,0.051699,96670.0,96662.0,0.3608]
[1732941465594,0.051699,96670.0,96664.0,0.05493497]
[1732941465793,0.051699,96670.0,96662.0,0.3608]
[1732941465794,0.051699,96670.0,96665.0,0.00323397]
[1732941466106,0.051699,96670.0,96662.0,0.3608]
[1732941466305,0.12952,96671.0,96663.0,0.00323402]
[1732941466490,0.12952,96671.0,96669.0,0.051699]
[1732941468407,0.12952,96671.0,96663.0,0.004]
[1732941468408,0.12952,96671.0,96663.0,0.051702]
[1732941468699,0.12952,96671.0,96669.0,0.001]
[1732941469924,0.12952,96671.0,96663.0,0.002]
[1732941470101,0.12952,96671.0,96663.0,0.006]
[1732941470300,0.12952,96671.0,96664.0,0.00323402]
[1732941470489,0.12952,96671.0,96669.0,0.051699]
[1732941470694,0.12952,96671.0,96670.0,0.00323402]
[1732941471501,0.0311,96672.0,96670.0,0.00323402]
[1732941471695,0.12952,96671.0,96669.0,0.051699]
[1732941472004,0.12952,96671.0,96670.0,0.00323402]
[1732941473101,0.49032,96671.0,96670.0,0.00323402]
[1732941475406,0.12952,96671.0,96670.0,0.00323402]
[1732941475703,0.49032,96671.0,96670.0,0.00323402]
[1732941478700,0.49032,96671.0,96669.0,0.051699]
[1732941479500,0.49032,96671.0,96660.0,0.2402055]
[1732941479695,0.49032,96671.0,96661.0,0.19465317]
[1732941479898,0.3608,96671.0,96662.0,0.00840832]
[1732941480093,0.3608,96671.0,96669.0,0.001]
[1732941480300,0.3608,96671.0,96670.0,0.00323398]
[1732941480540,0.3608,96671.0,96670.0,0.00323391]
[1732941480697,0.3618,96671.0,96670.0,0.00323391]
[1732941481407,0.3608,96671.0,96670.0,0.00323391]
[1732941486601,0.3608,96671.0,96670.0,0.01164199]
[1732941486806,0.3608,96671.0,96670.0,0.01487587]
[1732941489015,0.12952,96677.0,96670.0,0.01487587]
[1732941489312,0.3608,96674.0,96671.0,0.0084081]
[1732941489504,0.3608,96674.0,96672.0,0.0084081]
[1732941489707,0.3608,96674.0,96673.0,0.0084081]
[1732941489916,0.3608,96674.0,96668.0,0.18624481]
[1732941490128,0.3608,96674.0,96669.0,0.01487587]
[1732941490414,0.3608,96674.0,96670.0,0.01487587]
[1732941490606,0.3608,96674.0,96671.0,0.0084081]
[1732941490911,0.3618,96674.0,96672.0,0.0084081]
[1732941491114,0.3618,96674.0,96673.0,0.0084081]
[1732941491509,0.3608,96674.0,96673.0,0.0084081]
[1732941492307,0.3618,96674.0,96673.0,0.0084081]
[1732941493215,0.3628,96674.0,96673.0,0.0084081]
[1732941493608,0.3618,96674.0,96673.0,0.00323388]
[1732941493814,0.3628,96674.0,96673.0,0.00323388]
[1732941499816,0.3628,96674.0,96673.0,0.00840793]
[1732941500115,0.3628,96674.0,96673.0,0.00840789]
[1732941500450,0.3628,96674.0,96673.0,0.00840772]
[1732941504413,0.002,96674.0,96673.0,0.00840772]
[1732941505622,0.002,96674.0,96673.0,0.0148752]
[1732941505820,0.002,96674.0,96673.0,0.00840772]
[1732941506213,0.002,96674.0,96673.0,0.0148752]
[1732941506916,0.002,96674.0,96673.0,0.20099243]
[1732941507726,0.002,96674.0,96673.0,0.0148752]
[1732941507921,0.002,96674.0,96673.0,0.20100193]
[1732941511524,0.002,96674.0,96673.0,0.0148752]
[1732941511711,0.002,96674.0,96673.0,0.00840772]
[1732941516821,0.002,96674.0,96673.0,0.00323374]
[1732941523831,0.002,96674.0,96673.0,0.01487522]
[1732941526032,0.002,96674.0,96673.0,0.00840773]
[1732941527823,0.002,96674.0,96673.0,0.01487521]
[1732941528236,0.002,96674.0,96673.0,0.26320163]
[1732941528827,0.002,96674.0,96673.0,0.01487521]
[1732941529231,0.002,96674.0,96673.0,0.26320163]
[1732941529731,0.002,96674.0,96673.0,0.01487521]
[1732941530637,0.002,96674.0,96673.0,0.01487529]
[1732941531862,0.002,96674.0,96671.0,0.24832642]
[1732941531929,0.002,96674.0,96673.0,0.01487529]
[1732941532835,0.001,96674.0,96673.0,0.01487529]
[1732941533528,0.002,96674.0,96673.0,0.01487529]
[1732941534933,0.002,96674.0,96673.0,0.2011007]
[1732941535327,0.002,96674.0,96673.0,0.19463343]
[1732941535537,0.002,96674.0,96673.0,0.01487573]
[1732941538891,0.73664,96674.0,96670.0,0.24624641]
[1732941538925,0.73664,96674.0,96653.0,0.00155168]
[1732941538926,0.73664,96674.0,96671.0,0.00323413]
[1732941539128,0.43664,96674.0,96653.0,0.00155168]
[1732941539448,0.3608,96654.0,96653.0,0.00155168]
[1732941539744,0.48876,96654.0,96653.0,0.00155168]
[1732941540730,0.48976,96654.0,96653.0,0.00955168]
[1732941542142,0.48976,96654.0,96653.0,0.00355168]
[1732941542433,0.001,96654.0,96653.0,0.0137117]
[1732941546842,0.001,96654.0,96653.0,0.02017997]
[1732941548943,0.001,96654.0,96653.0,0.02535457]
[1732941550739,0.001,96654.0,96653.0,0.02858869]
[1732941551628,0.001,96654.0,96653.0,0.02858867]
[1732941559540,0.001,96654.0,96653.0,0.15654867]
[1732941560237,0.001,96654.0,96653.0,0.15729313]
[1732941561143,0.001,96654.0,96653.0,0.15654867]
[1732941561343,0.001,96654.0,96653.0,0.51734867]
[1732941562549,0.001,96654.0,96653.0,0.38938867]
[1732941562749,0.001,96654.0,96653.0,0.51734867]
[1732941563053,0.3608,96672.0,96653.0,0.51734867]
[1732941563242,0.3608,96672.0,96662.0,0.00074442]
[1732941563448,0.3608,96672.0,96664.0,0.00074442]
[1732941563750,0.3608,96672.0,96667.0,0.00074442]
[1732941563946,0.3608,96672.0,96668.0,0.01487697]
[1732941564147,0.3608,96672.0,96667.0,0.00074442]
[1732941564148,0.37320952,96672.0,96669.0,0.01487697]
[1732941564348,0.37320952,96672.0,96670.0,0.01487697]
[1732941564668,0.37320952,96672.0,96671.0,0.01487697]
[1732941565348,0.37320952,96672.0,96671.0,0.01487544]
[1732941565646,0.37420952,96672.0,96671.0,0.01487544]
[1732941566243,0.37320952,96672.0,96671.0,0.01487544]
[1732941566448,0.37520952,96672.0,96671.0,0.01487544]
[1732941567244,0.37420952,96672.0,96671.0,0.01487544]
[1732941567446,0.37520952,96672.0,96671.0,0.01487544]
[1732941568341,0.01440952,96672.0,96671.0,0.01487544]
[1732941568986,0.01440952,96672.0,96671.0,0.01487559]
[1732941570161,0.01440952,96672.0,96671.0,0.00840794]
[1732941570851,0.01440952,96672.0,96671.0,0.01487557]
[1732941573747,0.37520952,96672.0,96671.0,0.01487557]
[1732941574949,0.01440952,96672.0,96671.0,0.01487557]
[1732941575264,0.37520952,96672.0,96671.0,0.01487557]
[1732941576954,0.01440952,96672.0,96671.0,0.01487557]
[1732941582876,0.01440952,96672.0,96671.0,0.01487623]
[1732941583457,0.37520952,96672.0,96671.0,0.01487623]
[1732941587361,0.37520952,96672.0,96671.0,0.01562147]
[1732941587571,0.37520952,96672.0,96671.0,0.01487623]
[1732941589983,0.01440952,96672.0,96671.0,0.01487609]
[1732941590160,0.37520952,96672.0,96671.0,0.01487609]
[1732941591672,0.37520952,96672.0,96670.0,0.0328]
[1732941592757,0.37520952,96672.0,96671.0,0.01487571]
[1732941592959,0.37520952,96672.0,96670.0,0.0328]
[1732941593859,0.37320952,96672.0,96670.0,0.0328]
[1732941594151,0.37520952,96672.0,96670.0,0.0328]
[1732941594267,0.37520952,96672.0,96671.0,0.01487573]
[1732941594463,0.37520952,96672.0,96671.0,0.00323387]
[1732941594661,0.37520952,96672.0,96671.0,0.0148758]
[1732941597679,0.37520952,96672.0,96651.0,0.00229686]
[1732941597680,0.83878952,96672.0,96651.0,0.00229686]
[1732941597870,0.3608,96659.0,96652.0,0.00646876]
[1732941598063,0.3608,96659.0,96653.0,0.00646876]
[1732941598064,0.13068,96658.0,96653.0,0.00646876]
[1732941598269,0.13068,96658.0,96654.0,0.00646876]
[1732941598476,0.13068,96658.0,96655.0,0.00646876]
[1732941598675,0.13068,96658.0,96656.0,0.00646876]
[1732941598871,0.13068,96658.0,96657.0,0.00646876]
[1732941600186,0.13068,96658.0,96653.0,0.007]
[1732941600188,0.13168,96658.0,96653.0,0.007]
[1732941600376,0.13168,96658.0,96657.0,0.00646895]
[1732941600871,0.13168,96658.0,96657.0,0.01446895]
[1732941601275,0.14272685,96658.0,96657.0,0.00946895]
[1732941601577,0.14372685,96658.0,96657.0,0.00946895]
[1732941602693,0.14372685,96658.0,96657.0,0.00946904]
[1732941602996,0.14372685,96658.0,96657.0,0.008]
[1732941604124,0.14372685,96658.0,96657.0,0.01446898]
[1732941606980,0.14372685,96658.0,96657.0,0.008]
[1732941607793,0.14372685,96658.0,96657.0,0.01317517]
[1732941609192,0.50452685,96658.0,96657.0,0.01317517]
[1732941609591,0.37384685,96658.0,96657.0,0.01317517]
[1732941609886,0.50452685,96658.0,96657.0,0.01640966]
[1732941614096,0.50452685,96658.0,96657.0,0.02287865]
[1732941621998,0.37384685,96658.0,96657.0,0.02287865]
[1732941622198,0.50308685,96658.0,96657.0,0.02703867]
[1732941622501,0.37384685,96658.0,96657.0,0.02703867]
[1732941624112,0.37384685,96658.0,96657.0,0.02778274]
[1732941624606,0.37384685,96658.0,96657.0,0.02703841]
[1732941627463,0.37384685,96658.0,96657.0,0.01216002]
[1732941627666,0.37384685,96658.0,96657.0,0.02703835]
[1732941629103,0.37384685,96658.0,96657.0,0.02778377]
[1732941629304,0.37384685,96658.0,96657.0,0.02703835]
[1732941629505,0.01304685,96658.0,96657.0,0.02703835]
[1732941629704,0.37384685,96658.0,96657.0,0.02703835]
[1732941630102,0.37384685,96658.0,96657.0,0.02778377]
[1732941631246,0.37384685,96658.0,96657.0,0.02703835]
[1732941633906,0.01304685,96658.0,96657.0,0.02703835]
[1732941639518,0.001,96658.0,96657.0,0.02703835]
[1732941644318,0.001,96658.0,96657.0,0.02778333]
[1732941645470,0.001,96658.0,96657.0,0.01216002]
[1732941645680,0.001,96658.0,96657.0,0.02778278]
[1732941646420,0.001,96658.0,96657.0,0.02778256]
[1732941646620,0.001,96658.0,96657.0,0.02703781]
[1732941647622,0.001,96658.0,96657.0,0.07874381]
[1732941648427,0.001,96658.0,96657.0,0.07948893]
[1732941649026,0.001,96658.0,96657.0,0.07874281]
[1732941652760,0.001,96658.0,96657.0,0.07874253]
[1732941655136,0.001,96658.0,96657.0,0.32690072]
[1732941656326,0.001,96658.0,96657.0,0.07874251]
[1732941658631,0.001,96658.0,96657.0,0.07948766]
[1732941658935,0.001,96658.0,96657.0,0.07874251]
[1732941661938,0.001,96658.0,96657.0,0.43954251]
[1732941662337,0.001,96658.0,96657.0,0.43954202]
[1732941664728,0.001,96658.0,96657.0,0.435382]
[1732941665756,0.001,96658.0,96657.0,0.42891425]
[1732941666435,0.001,96658.0,96657.0,0.43538239]
[1732941669321,0.001,96658.0,96657.0,0.43538281]
[1732941673351,0.001,96658.0,96657.0,0.43612802]
[1732941674449,0.001,96658.0,96657.0,0.43538281]
[1732941676163,0.001,96658.0,96657.0,0.420506]
[1732941676455,0.001,96658.0,96657.0,0.43538277]
[1732941679452,0.001,96658.0,96657.0,0.43612848]
[1732941680648,0.001,96658.0,96657.0,0.43538277]
[1732941680848,0.001,96658.0,96657.0,0.07458277]
[1732941683054,0.001,96658.0,96657.0,0.07874279]
[1732941683273,0.001,96658.0,96657.0,0.07874269]
[1732941683456,0.001,96658.0,96657.0,0.85806934]
[1732941683660,0.001,96658.0,96657.0,0.5515877]
[1732941684457,0.001,96658.0,96657.0,0.07874267]
[1732941689974,0.001,96658.0,96657.0,0.07458265]
[1732941692664,0.001,96658.0,96657.0,0.54741248]
[1732941693670,0.001,96658.0,96657.0,0.547412]
[1732941695973,0.001,96658.0,96657.0,0.54815773]
[1732941696164,0.001,96658.0,96657.0,0.547412]
[1732941696971,0.001,96658.0,96657.0,0.53253583]
[1732941697174,0.001,96658.0,96657.0,0.54741213]
[1732941698472,0.14123969,96665.0,96657.0,0.86736496]
[1732941698779,0.14123969,96665.0,96663.0,0.3608]
[1732941698967,0.14123969,96665.0,96664.0,0.00840834]
[1732941700759,0.14123969,96665.0,96664.0,0.00840801]
[1732941701276,0.14123969,96665.0,96664.0,0.00940801]
[1732941701877,0.01223969,96665.0,96664.0,0.00940801]
[1732941702079,0.129,96665.0,96664.0,0.00940801]
[1732941704090,0.129,96665.0,96664.0,0.00940804]
[1732941704281,0.129,96665.0,96664.0,0.001]
[1732941704526,0.129,96665.0,96664.0,0.00423396]
[1732941704668,0.129,96665.0,96664.0,0.00940834]
[1732941711772,0.129,96665.0,96664.0,0.00423396]
[1732941711973,0.129,96665.0,96664.0,0.19043576]
[1732941713583,0.129,96665.0,96664.0,0.19042354]
[1732941714571,0.129,96665.0,96664.0,0.00423396]
[1732941714780,0.129,96665.0,96664.0,0.001]
[1732941715688,0.129,96665.0,96664.0,0.00423417]
[1732941716184,0.12992,96665.0,96664.0,0.00423417]
[1732941717076,0.12992,96665.0,96664.0,0.001]
[1732941717583,0.12992,96665.0,96664.0,0.00423422]
[1732941718880,0.13192,96665.0,96664.0,0.00423422]
[1732941719276,0.13192,96665.0,96664.0,0.00323422]
[1732941719476,0.13492,96665.0,96658.0,0.051705]
[1732941719678,0.051704,96660.0,96658.0,0.051705]
[1732941720493,0.412504,96660.0,96658.0,0.051705]
[1732941720680,0.412504,96660.0,96659.0,0.00840898]
[1732941720995,0.413504,96660.0,96659.0,0.00840898]
[1732941722687,0.412504,96660.0,96659.0,0.00840898]
[1732941722992,0.413504,96660.0,96659.0,0.00840928]
[1732941723288,0.414504,96660.0,96659.0,0.00840928]
[1732941725194,0.42653361,96660.0,96659.0,0.00840928]
[1732941727495,0.06573361,96660.0,96659.0,0.00840928]
[1732941727988,0.06573361,96660.0,96659.0,0.00323434]
[1732941728598,0.19565361,96660.0,96659.0,0.00323434]
[1732941730085,0.19565361,96660.0,96659.0,0.03563434]
[1732941730988,0.19565361,96660.0,96659.0,0.22182392]
[1732941731401,0.01402961,96660.0,96659.0,0.22182392]
[1732941731696,0.01402961,96660.0,96659.0,0.07546893]
[1732941731697,0.14394961,96660.0,96659.0,0.07546893]
[1732941731898,0.01402961,96660.0,96659.0,0.07546893]
[1732941734093,0.01402961,96660.0,96659.0,0.12717293]
[1732941734993,0.01402961,96660.0,96659.0,0.13364097]
[1732941736406,0.01402961,96660.0,96659.0,0.13364051]
[1732941737892,0.01202961,96660.0,96659.0,0.13364051]
[1732941738086,0.3608,96671.0,96659.0,0.13364051]
[1732941738087,0.12832,96668.0,96667.0,0.0517]
[1732941738287,0.12832,96668.0,96667.0,0.06010845]
[1732941739096,0.13132,96668.0,96667.0,0.06010845]
[1732941739601,0.13632,96668.0,96667.0,0.06010845]
[1732941739797,0.008,96668.0,96667.0,0.06010835]
[1732941744500,0.008,96668.0,96667.0,0.42090835]
[1732941744701,0.00084,96671.0,96667.0,0.42737569]
[1732941744897,0.12832,96681.0,96680.0,0.051693]
[1732941745203,0.12832,96681.0,96680.0,0.05492698]
[1732941745398,0.12832,96681.0,96680.0,0.059087]
[1732941745591,0.14029315,96681.0,96680.0,0.059087]
[1732941745793,0.14029315,96681.0,96680.0,0.05908658]
[1732941745990,0.01797315,96681.0,96680.0,0.06008658]